Workbook

Sheet Распределительная сеть
A1: Наин. щита | C1: Наименование ЭП, групп ЭП, узлов питания | D1: Кол-во эл. прием. | E1: Ру одного | F1: Ру | G1: Фазность | H1: Коэф. использ., Ки | I1: Коэф. Реактивной | K1: Ру.пр. | N1: Qу.пр. | Q1: Iу.пр. | R1: Рр.пр. | U1: Qр.пр. | X1: Iу | AA1: Iр.пр. | AC1: nэ | AD1: Кр | AE1: Рр с учетом Кр | AF1: Аппараты защиты | AK1: Sмм кв по меди 3х"-" | AL1: Sмм кв по меди 5х"-" | AM1: Кол-во модулей | AN1: Марка щита | AO1: МЩ1 | AR1: МЩ2
K2: Фаза | N2: Фаза | R2: Фаза | U2: Фаза | X2: Фаза | AF2: вводной, Iн/Iу | AG2: 3Ф Iн/Iу | AH2: 1Ф Iн/Iу | AI2: УЗО | AO2: Ру | AP2: Рр | AQ2: Iр | AR2: Ру | AS2: Рр | AT2: Iр
I3: cos φ | J3: tg φ | K3: А | L3: В | M3: С | N3: А | O3: В | P3: С | R3: А | S3: В | T3: С | U3: А | V3: В | W3: С | X3: А | Y3: В | Z3: С | AI3: 3Ф Iн/Iу | AJ3: 1Ф Iн/Iу
A4: ЩР1.1 | C4: Облучатель бактерицидный настенный рециркуляционный | D4: 2 | E4: 0.14 | F4: =E4*D4 -> 0.28 | G4: 220 | H4: 1 | I4: 0.95 | J4: =IF(I4=0," ",IF(I4=1,"-",TAN(ACOS(I4)))) -> 0.3286841052 | M4: =F4 -> 0.28 | O4: =IF(L4=0," ",$F4*$J4) ->  | P4: 0.09203154945 | Q4: =IF($I4=0," ",IF($G4=220,$F4/(0.22*$I4),$F4/(0.38*$I4*3^0.5))) -> 1.339712919 | R4: =IF(K4=0," ",$F4*$H4) ->  | T4: 0.28 | U4: =IF(K4=0," ",$J4*$F4*$H4) ->  | W4: 0.09203154945 | X4: =IF(K4=0,0,K4/(0.22*I4)) -> 0 | Y4: =IF(L4=0,0,L4/(0.22*I4)) -> 0 | Z4: =IF(M4=0,0,M4/(0.22*I4)) -> 1.339712919 | AB4: =F4^2 -> 0.0784 | AG4: =IF(G4=380,VLOOKUP(CEILING(#REF!,1),#REF!,2)," ") ->  | AH4: =IF(G4=220,VLOOKUP(CEILING(#REF!,1),#REF!,2)," ") ->  | AK4: =IF(G4=220,VLOOKUP(AH4,#REF!,2)," ") ->  | AL4: =IF(G4=380,VLOOKUP(AG4,#REF!,2)," ") ->  | AM4: =IF(AG4=0,IF(AG4<101,"СТАЦ.",3),IF(AH4>101,"СТАЦ.",1)) -> 
A5: 59 | C5: Консоль палатная длина 1240 6 розеток + освещение | D5: 1 | E5: 2 | F5: 2 | G5: 220 | H5: 0.15 | I5: 0.95 | J5: 0.3286841052 | K5: =F5 -> 2 | N5: =IF(K5=0," ",$F5*$J5) -> 0.6573682104 | Q5: 9.56937799 | R5: 0.3 | U5: 0.09860523155 | X5: 9.56937799 | Y5: 0 | Z5: 0 | AB5: 4 | AG5: =IF(G5=380,VLOOKUP(CEILING(#REF!,1),#REF!,2)," ") ->  | AH5: =IF(G5=220,VLOOKUP(CEILING(#REF!,1),#REF!,2)," ") ->  | AK5: =IF(G5=220,VLOOKUP(AH5,#REF!,2)," ") ->  | AL5: =IF(G5=380,VLOOKUP(AG5,#REF!,2)," ") -> 
A6: 59 | C6: Консоль палатная длина 1240 6 розеток + освещение | D6: 1 | E6: 2 | F6: 2 | G6: 220 | H6: 0.15 | I6: 0.95 | J6: 0.3286841052 | L6: 2 | N6: =IF(K6=0," ",$F6*$J6) ->  | O6: 0.6573682104 | Q6: 9.56937799 | S6: 0.3 | V6: 0.09860523155 | X6: 0 | Y6: 9.56937799 | Z6: 0 | AB6: 4 | AG6: =IF(G6=380,VLOOKUP(CEILING(#REF!,1),#REF!,2)," ") ->  | AH6: =IF(G6=220,VLOOKUP(CEILING(#REF!,1),#REF!,2)," ") ->  | AK6: =IF(G6=220,VLOOKUP(AH6,#REF!,2)," ") ->  | AL6: =IF(G6=380,VLOOKUP(AG6,#REF!,2)," ") -> 
A7: 59 | C7: Консоль палатная длина 1240 6 розеток + освещение | D7: 1 | E7: 2 | F7: 2 | G7: 220 | H7: 0.15 | I7: 0.95 | J7: 0.3286841052 | M7: 2 | P7: 0.6573682104 | Q7: 9.56937799 | T7: 0.3 | W7: 0.09860523155 | X7: 0 | Y7: 0 | Z7: 9.56937799 | AB7: 4 | AG7: =IF(G7=380,VLOOKUP(CEILING(#REF!,1),#REF!,2)," ") ->  | AH7: =IF(G7=220,VLOOKUP(CEILING(#REF!,1),#REF!,2)," ") ->  | AK7: =IF(G7=220,VLOOKUP(AH7,#REF!,2)," ") ->  | AL7: =IF(G7=380,VLOOKUP(AG7,#REF!,2)," ") -> 
A8: 59 | C8: Консоль палатная длина 1240 6 розеток + освещение | D8: 1 | E8: 2 | F8: 2 | G8: 220 | H8: 0.15 | I8: 0.95 | J8: 0.3286841052 | K8: =F8 -> 2 | N8: 0.6573682104 | Q8: 9.56937799 | R8: 0.3 | U8: 0.09860523155 | X8: 9.56937799 | Y8: 0 | Z8: 0 | AB8: 4 | AG8: =IF(G8=380,VLOOKUP(CEILING(#REF!,1),#REF!,2)," ") ->  | AH8: =IF(G8=220,VLOOKUP(CEILING(#REF!,1),#REF!,2)," ") ->  | AK8: =IF(G8=220,VLOOKUP(AH8,#REF!,2)," ") ->  | AL8: =IF(G8=380,VLOOKUP(AG8,#REF!,2)," ") -> 
A9: 59 | C9: Консоль палатная длина 1240 6 розеток + освещение | D9: 1 | E9: 2 | F9: 2 | G9: 220 | H9: 0.15 | I9: 0.95 | J9: 0.3286841052 | L9: 2 | O9: 0.6573682104 | Q9: 9.56937799 | S9: 0.3 | V9: 0.09860523155 | X9: 0 | Y9: 9.56937799 | Z9: 0 | AB9: 4 | AG9: =IF(G9=380,VLOOKUP(CEILING(#REF!,1),#REF!,2)," ") ->  | AH9: =IF(G9=220,VLOOKUP(CEILING(#REF!,1),#REF!,2)," ") ->  | AK9: =IF(G9=220,VLOOKUP(AH9,#REF!,2)," ") ->  | AL9: =IF(G9=380,VLOOKUP(AG9,#REF!,2)," ") -> 
A10: 59 | C10: Консоль палатная длина 1240 6 розеток + освещение | D10: 1 | E10: 2 | F10: 2 | G10: 220 | H10: 0.15 | I10: 0.95 | J10: 0.3286841052 | M10: 2 | P10: 0.6573682104 | Q10: 9.56937799 | T10: 0.3 | W10: 0.09860523155 | X10: 0 | Y10: 0 | Z10: 9.56937799 | AB10: 4 | AG10: =IF(G10=380,VLOOKUP(CEILING(#REF!,1),#REF!,2)," ") ->  | AH10: =IF(G10=220,VLOOKUP(CEILING(#REF!,1),#REF!,2)," ") ->  | AK10: =IF(G10=220,VLOOKUP(AH10,#REF!,2)," ") ->  | AL10: =IF(G10=380,VLOOKUP(AG10,#REF!,2)," ") -> 
A11: 59 | C11: Консоль палатная длина 1240 6 розеток + освещение | D11: 1 | E11: 2 | F11: 2 | G11: 220 | H11: 0.15 | I11: 0.95 | J11: 0.3286841052 | K11: =F11 -> 2 | N11: 0.6573682104 | Q11: 9.56937799 | R11: 0.3 | U11: 0.09860523155 | X11: 9.56937799 | Y11: 0 | Z11: 0 | AB11: 4 | AG11: =IF(G11=380,VLOOKUP(CEILING(#REF!,1),#REF!,2)," ") ->  | AH11: =IF(G11=220,VLOOKUP(CEILING(#REF!,1),#REF!,2)," ") ->  | AK11: =IF(G11=220,VLOOKUP(AH11,#REF!,2)," ") ->  | AL11: =IF(G11=380,VLOOKUP(AG11,#REF!,2)," ") -> 
A12: 59 | C12: Консоль палатная длина 1240 6 розеток + освещение | D12: 1 | E12: 2 | F12: 2 | G12: 220 | H12: 0.15 | I12: 0.95 | J12: 0.3286841052 | L12: 2 | O12: 0.6573682104 | Q12: 9.56937799 | S12: 0.3 | V12: 0.09860523155 | X12: 0 | Y12: 9.56937799 | Z12: 0 | AB12: 4 | AG12: =IF(G12=380,VLOOKUP(CEILING(#REF!,1),#REF!,2)," ") ->  | AH12: =IF(G12=220,VLOOKUP(CEILING(#REF!,1),#REF!,2)," ") ->  | AK12: =IF(G12=220,VLOOKUP(AH12,#REF!,2)," ") ->  | AL12: =IF(G12=380,VLOOKUP(AG12,#REF!,2)," ") -> 
A13: 59 | C13: Консоль палатная длина 1240 6 розеток + освещение | D13: 1 | E13: 2 | F13: 2 | G13: 220 | H13: 0.15 | I13: 0.95 | J13: 0.3286841052 | M13: 2 | P13: 0.6573682104 | Q13: 9.56937799 | T13: 0.3 | W13: 0.09860523155 | X13: 0 | Y13: 0 | Z13: 9.56937799 | AB13: 4 | AG13: =IF(G13=380,VLOOKUP(CEILING(#REF!,1),#REF!,2)," ") ->  | AH13: =IF(G13=220,VLOOKUP(CEILING(#REF!,1),#REF!,2)," ") ->  | AK13: =IF(G13=220,VLOOKUP(AH13,#REF!,2)," ") ->  | AL13: =IF(G13=380,VLOOKUP(AG13,#REF!,2)," ") -> 
A14: 59 | C14: Консоль палатная длина 1240 6 розеток + освещение | D14: 1 | E14: 2 | F14: 2 | G14: 220 | H14: 0.15 | I14: 0.95 | J14: 0.3286841052 | K14: 2 | N14: 0.6573682104 | Q14: 9.56937799 | R14: 0.3 | U14: 0.09860523155 | X14: 9.56937799 | Y14: 0 | Z14: 0 | AB14: 4 | AG14: =IF(G14=380,VLOOKUP(CEILING(#REF!,1),#REF!,2)," ") ->  | AH14: =IF(G14=220,VLOOKUP(CEILING(#REF!,1),#REF!,2)," ") ->  | AK14: =IF(G14=220,VLOOKUP(AH14,#REF!,2)," ") ->  | AL14: =IF(G14=380,VLOOKUP(AG14,#REF!,2)," ") -> 
A15: 59 | C15: Консоль палатная длина 1240 6 розеток + освещение | D15: 1 | E15: 2 | F15: 2 | G15: 220 | H15: 0.15 | I15: 0.95 | J15: 0.3286841052 | L15: 2 | O15: 0.6573682104 | Q15: 9.56937799 | S15: 0.3 | V15: 0.09860523155 | X15: 0 | Y15: 9.56937799 | Z15: 0 | AB15: 4 | AG15: =IF(G15=380,VLOOKUP(CEILING(#REF!,1),#REF!,2)," ") ->  | AH15: =IF(G15=220,VLOOKUP(CEILING(#REF!,1),#REF!,2)," ") ->  | AK15: =IF(G15=220,VLOOKUP(AH15,#REF!,2)," ") ->  | AL15: =IF(G15=380,VLOOKUP(AG15,#REF!,2)," ") -> 
K16: =SUM(K4:K15) -> 8 | L16: 8 | M16: 6.28 | N16: 2.629472841 | O16: 2.629472841 | P16: 2.064136181 | R16: =SUM(R4:R15) -> 1.2 | S16: 1.2 | T16: 1.18 | U16: 0.3944209262 | V16: 0.3944209262 | W16: 0.3878472441 | X16: =mmax(X4:X15) -> 28.70813397 | Y16: =mmax(Y4:Y15) -> 28.70813397 | Z16: =mmax(Z4:Z15) -> 28.70813397
D17: =SUM(D4:D15) -> 13 | F17: =SUM(F4:F15) -> 22.28 | G17: 380 | H17: =R17/K17 -> 0.15 | I17: =COS(ATAN(J17)) -> 0.95 | J17: =U17/R17 -> 0.3286841052 | K17: =MAX(SUM(K4:K15),SUM(L4:L15),SUM(M4:M15))*3 -> 24 | N17: =MAX(SUM(N4:N15),SUM(O4:O15),SUM(P4:P15))*3 -> 7.888418524 | Q17: =IF($F17=0," ",IF($G17=220,$K17/(0.22*COS(ATAN(N17/K17))),$K17/(0.38*COS(ATAN(N17/K17))*3^0.5))) -> 38.3833974 | R17: =MAX(SUM(R4:R15),SUM(S4:S15),SUM(T4:T15))*3 -> 3.6 | U17: =MAX(SUM(U4:U15),SUM(V4:V15),SUM(W4:W15))*3 -> 1.183262779 | X17: =MAX(X16,Y16,Z16) -> 28.70813397 | AA17: =IF($F17=0," ",IF($G17=220,$R17/(0.22*COS(ATAN(U17/R17))),$R17/(0.38*COS(ATAN(U17/R17))*3^0.5))) -> 5.75750961 | AB17: =SUM(AB4:AB15) -> 44.0784 | AC17: =F17^2/AB17 -> 11.26171549 | AD17: =VLOOKUP(FLOOR(AC17,1),#REF!,IF(H17>0.75,10,IF(H17>0.65,9,IF(H17>0.55,8,IF(H17>0.45,7,IF(H17>0.35,6,IF(H17>0.25,5,IF(H17>0.175,4,3)))))))) ->  | AE17: =AD17*#REF! ->  | AG17: =IF(G17=380,VLOOKUP(CEILING(#REF!,1),#REF!,2)," ") ->  | AH17: =IF(G17=220,VLOOKUP(CEILING(#REF!,1),#REF!,2)," ") ->  | AK17: =IF(G17=220,VLOOKUP(AH17,#REF!,2)," ") ->  | AL17: =IF(G17=380,VLOOKUP(AG17,#REF!,2)," ") ->  | AM17: =SUM(#REF!)+3 ->  | AN17: =IF(F17=0," ",IF(AM17+5<9,"ЩРн-9з-3 38 УХЛ3",IF(AM17+5<12,"ЩРн-12з-3 38 УХЛ3",IF(AM17+5<18,"ЩРн-18з-3 38 УХЛ3",IF(AM17+5<24,"ЩРн-24з-3 38 УХЛ3",IF(AM17+5<36,"ЩРн-36з-3 38 УХЛ3",IF(AM17+5<48,"ЩРн-48з-3 38 УХЛ3",IF(AM17+5<54,"ЩРн-54з-3 38 УХЛ3","ЩРн-72з-3 38 УХЛ3")))))))) -> 
A19: ЩР1.2 | C19: Холодильник бытовой | D19: 1 | E19: 0.18 | F19: =E19*D19 -> 0.18 | G19: 220 | H19: 1 | I19: 0.65 | J19: =IF(I19=0," ",IF(I19=1,"-",TAN(ACOS(I19)))) -> 1.16912955 | M19: =F19 -> 0.18 | N19: =IF(K19=0," ",$F19*$J19) ->  | O19: =IF(L19=0," ",$F19*$J19) ->  | P19: 0.210443319 | Q19: 1.258741259 | R19: =IF(K19=0," ",$F19*$H19) ->  | S19: =IF(L19=0," ",$F19*$H19) ->  | T19: 0.18 | U19: =IF(K19=0," ",$J19*$F19*$H19) ->  | V19: =IF(L19=0," ",$J19*$F19*$H19) ->  | W19: 0.210443319 | X19: =IF(K19=0,0,K19/(0.22*I19)) -> 0 | Y19: =IF(L19=0,0,L19/(0.22*I19)) -> 0 | Z19: =IF(M19=0,0,M19/(0.22*I19)) -> 1.258741259 | AB19: =F19^2 -> 0.0324 | AG19: =IF(G19=380,VLOOKUP(CEILING(#REF!,1),#REF!,2)," ") ->  | AH19: =IF(G19=220,VLOOKUP(CEILING(#REF!,1),#REF!,2)," ") ->  | AK19: =IF(G19=220,VLOOKUP(AH19,#REF!,2)," ") ->  | AL19: =IF(G19=380,VLOOKUP(AG19,#REF!,2)," ") ->  | AM19: =IF(AG19=0,IF(AG19<101,"СТАЦ.",3),IF(AH19>101,"СТАЦ.",1)) -> 
A20: 23 | C20: Холодильник бытовой | D20: 1 | E20: 0.18 | F20: 0.18 | G20: 220 | H20: 1 | I20: 0.65 | J20: 1.16912955 | M20: =F20 -> 0.18 | N20: =IF(K20=0," ",$F20*$J20) ->  | P20: 0.210443319 | Q20: 1.258741259 | R20: =IF(K20=0," ",$F20*$H20) ->  | T20: 0.18 | U20: =IF(K20=0," ",$J20*$F20*$H20) ->  | W20: 0.210443319 | X20: 0 | Y20: 0 | Z20: 1.258741259 | AB20: 0.0324 | AG20: =IF(G20=380,VLOOKUP(CEILING(#REF!,1),#REF!,2)," ") ->  | AH20: =IF(G20=220,VLOOKUP(CEILING(#REF!,1),#REF!,2)," ") ->  | AK20: =IF(G20=220,VLOOKUP(AH20,#REF!,2)," ") ->  | AL20: =IF(G20=380,VLOOKUP(AG20,#REF!,2)," ") -> 
A21: 35 | C21: Судномоечная машина | D21: 1 | E21: 6.3 | F21: 6.3 | G21: 380 | H21: 0.7 | I21: 0.98 | J21: 0.2030586606 | K21: =$F21/3 -> 2.1 | L21: 2.1 | M21: 2.1 | N21: =IF(K21=0," ",IF($I21=1,#REF!,$K21*$J21)) -> 0.4264231873 | O21: =IF(L21=0," ",IF($I21=1,#REF!,$L21*$J21)) -> 0.4264231873 | P21: =IF(M21=0," ",IF($I21=1,#REF!,$M21*$J21)) -> 0.4264231873 | Q21: 9.767203802 | R21: =IF(K21=0," ",($F21*$H21)/3) -> 1.47 | S21: 1.47 | T21: 1.47 | U21: =IF(K21=0," ",IF($I21=1,#REF!,$J21*$K21*$H21)) -> 0.2984962311 | V21: =IF(L21=0," ",IF($I21=1,#REF!,$J21*$L21*$H21)) -> 0.2984962311 | W21: =IF(M21=0," ",IF($I21=1,#REF!,$J21*$M21*$H21)) -> 0.2984962311 | X21: 9.74025974 | Y21: 9.74025974 | Z21: 9.74025974
A22: 35 | C22: Судномоечная машина | D22: 1 | E22: 6.3 | F22: 6.3 | G22: 380 | H22: 0.7 | I22: 0.98 | J22: 0.2030586606 | K22: 2.1 | L22: 2.1 | M22: 2.1 | N22: =IF(K22=0," ",IF($I22=1,#REF!,$K22*$J22)) -> 0.4264231873 | O22: =IF(L22=0," ",IF($I22=1,#REF!,$L22*$J22)) -> 0.4264231873 | P22: =IF(M22=0," ",IF($I22=1,#REF!,$M22*$J22)) -> 0.4264231873 | Q22: 9.767203802 | R22: 1.47 | S22: 1.47 | T22: 1.47 | U22: =IF(K22=0," ",IF($I22=1,#REF!,$J22*$K22*$H22)) -> 0.2984962311 | V22: =IF(L22=0," ",IF($I22=1,#REF!,$J22*$L22*$H22)) -> 0.2984962311 | W22: =IF(M22=0," ",IF($I22=1,#REF!,$J22*$M22*$H22)) -> 0.2984962311 | X22: 9.74025974 | Y22: 9.74025974 | Z22: 9.74025974
A23: 58 | C23: Посудомоечная машина | D23: 1 | E23: 6.8 | F23: 6.8 | G23: 380 | H23: 0.7 | I23: 0.98 | J23: 0.2030586606 | K23: 2.266666667 | L23: 2.266666667 | M23: 2.266666667 | N23: =IF(K23=0," ",IF($I23=1,#REF!,$K23*$J23)) -> 0.4602662974 | O23: =IF(L23=0," ",IF($I23=1,#REF!,$L23*$J23)) -> 0.4602662974 | P23: =IF(M23=0," ",IF($I23=1,#REF!,$M23*$J23)) -> 0.4602662974 | Q23: 10.54237871 | R23: 1.586666667 | S23: 1.586666667 | T23: 1.586666667 | U23: =IF(K23=0," ",IF($I23=1,#REF!,$J23*$K23*$H23)) -> 0.3221864082 | V23: =IF(L23=0," ",IF($I23=1,#REF!,$J23*$L23*$H23)) -> 0.3221864082 | W23: =IF(M23=0," ",IF($I23=1,#REF!,$J23*$M23*$H23)) -> 0.3221864082 | X23: 10.51329623 | Y23: 10.51329623 | Z23: 10.51329623
A24: 34 | C24: Облучатель бактерицидный настенный рециркуляционный | D24: 2 | E24: 0.14 | F24: 0.28 | G24: 220 | H24: 0.6 | I24: 0.95 | J24: 0.3286841052 | K24: =F24 -> 0.28 | N24: =IF(K24=0," ",$F24*$J24) -> 0.09203154945 | Q24: 1.339712919 | R24: =IF(K24=0," ",$F24*$H24) -> 0.168 | U24: =IF(K24=0," ",$J24*$F24*$H24) -> 0.05521892967 | X24: 1.339712919 | Y24: 0 | Z24: 0 | AB24: =F24^2 -> 0.0784 | AG24: =IF(G24=380,VLOOKUP(CEILING(#REF!,1),#REF!,2)," ") ->  | AH24: =IF(G24=220,VLOOKUP(CEILING(#REF!,1),#REF!,2)," ") ->  | AK24: =IF(G24=220,VLOOKUP(AH24,#REF!,2)," ") ->  | AL24: =IF(G24=380,VLOOKUP(AG24,#REF!,2)," ") ->  | AM24: =IF(AG24=0,IF(AG24<101,"СТАЦ.",3),IF(AH24>101,"СТАЦ.",1)) -> 
A25: 34 | C25: Облучатель бактерицидный настенный рециркуляционный | D25: 1 | E25: 0.14 | F25: 0.14 | G25: 220 | H25: 0.6 | I25: 0.95 | J25: 0.3286841052 | K25: =F25 -> 0.14 | N25: 0.04601577473 | Q25: 0.6698564593 | R25: 0.084 | U25: 0.02760946484 | X25: 0.6698564593 | Y25: 0 | Z25: 0 | AB25: 0.0196 | AG25: =IF(G25=380,VLOOKUP(CEILING(#REF!,1),#REF!,2)," ") ->  | AH25: =IF(G25=220,VLOOKUP(CEILING(#REF!,1),#REF!,2)," ") ->  | AK25: =IF(G25=220,VLOOKUP(AH25,#REF!,2)," ") ->  | AL25: =IF(G25=380,VLOOKUP(AG25,#REF!,2)," ") -> 
A26: 44 | C26: Облучатель бактерицидный настенный рециркуляционный | D26: 1 | E26: 0.02 | F26: 0.02 | G26: 220 | H26: 0.6 | I26: 0.95 | J26: 0.3286841052 | L26: 0.02 | N26: =IF(K26=0," ",$F26*$J26) ->  | O26: =IF(L26=0," ",$F26*$J26) -> 0.006573682104 | Q26: 0.0956937799 | R26: =IF(K26=0," ",$F26*$H26) ->  | S26: =IF(L26=0," ",$F26*$H26) -> 0.012 | U26: =IF(K26=0," ",$J26*$F26*$H26) ->  | V26: =IF(L26=0," ",$J26*$F26*$H26) -> 0.003944209262 | X26: 0 | Y26: 0.0956937799 | Z26: 0 | AB26: 0.0004 | AG26: =IF(G26=380,VLOOKUP(CEILING(#REF!,1),#REF!,2)," ") ->  | AH26: =IF(G26=220,VLOOKUP(CEILING(#REF!,1),#REF!,2)," ") ->  | AK26: =IF(G26=220,VLOOKUP(AH26,#REF!,2)," ") ->  | AL26: =IF(G26=380,VLOOKUP(AG26,#REF!,2)," ") -> 
A27: 34 | C27: Облучатель бактерицидный настенный рециркуляционный | D27: 3 | E27: 0.14 | F27: 0.42 | G27: 220 | H27: 0.6 | I27: 0.95 | J27: 0.3286841052 | L27: 0.42 | N27: =IF(K27=0," ",$F27*$J27) ->  | O27: =IF(L27=0," ",$F27*$J27) -> 0.1380473242 | Q27: 2.009569378 | R27: =IF(K27=0," ",$F27*$H27) ->  | S27: =IF(L27=0," ",$F27*$H27) -> 0.252 | U27: =IF(K27=0," ",$J27*$F27*$H27) ->  | V27: =IF(L27=0," ",$J27*$F27*$H27) -> 0.08282839451 | X27: 0 | Y27: 2.009569378 | Z27: 0 | AB27: 0.1764 | AG27: =IF(G27=380,VLOOKUP(CEILING(#REF!,1),#REF!,2)," ") ->  | AH27: =IF(G27=220,VLOOKUP(CEILING(#REF!,1),#REF!,2)," ") ->  | AK27: =IF(G27=220,VLOOKUP(AH27,#REF!,2)," ") ->  | AL27: =IF(G27=380,VLOOKUP(AG27,#REF!,2)," ") -> 
A28: 79 | C28: Обогреватель, излучающий для новорожденных | D28: 1 | E28: 0.9 | F28: 0.9 | G28: 220 | H28: 0.9 | I28: 0.95 | J28: 0.3286841052 | K28: 0.9 | N28: =IF(K28=0," ",$F28*$J28) -> 0.2958156947 | Q28: 4.306220096 | R28: =IF(K28=0," ",$F28*$H28) -> 0.81 | U28: =IF(K28=0," ",$J28*$F28*$H28) -> 0.2662341252 | X28: 4.306220096 | Y28: 0 | Z28: 0
A29: 44 | C29: Смотровой осветитель | D29: 1 | E29: 0.02 | F29: 0.02 | G29: 220 | H29: 0.6 | I29: 0.95 | J29: 0.3286841052 | M29: =F29 -> 0.02 | P29: 0.006573682104 | Q29: 0.0956937799 | T29: 0.012 | W29: 0.003944209262 | X29: 0 | Y29: 0 | Z29: 0.0956937799 | AB29: 0.0004 | AG29: =IF(G29=380,VLOOKUP(CEILING(#REF!,1),#REF!,2)," ") ->  | AH29: =IF(G29=220,VLOOKUP(CEILING(#REF!,1),#REF!,2)," ") ->  | AK29: =IF(G29=220,VLOOKUP(AH29,#REF!,2)," ") ->  | AL29: =IF(G29=380,VLOOKUP(AG29,#REF!,2)," ") -> 
A30: 59 | C30: Консоль палатная длина 1240 6 розеток + освещение | D30: 1 | E30: 2 | F30: 2 | G30: 220 | H30: 0.15 | I30: 0.95 | J30: 0.3286841052 | K30: =F30 -> 2 | N30: 0.6573682104 | Q30: 9.56937799 | R30: 0.3 | U30: 0.09860523155 | X30: 9.56937799 | Y30: 0 | Z30: 0 | AB30: 4 | AG30: =IF(G30=380,VLOOKUP(CEILING(#REF!,1),#REF!,2)," ") ->  | AH30: =IF(G30=220,VLOOKUP(CEILING(#REF!,1),#REF!,2)," ") ->  | AK30: =IF(G30=220,VLOOKUP(AH30,#REF!,2)," ") ->  | AL30: =IF(G30=380,VLOOKUP(AG30,#REF!,2)," ") -> 
A31: 59 | C31: Консоль палатная длина 1240 6 розеток + освещение | D31: 1 | E31: 2 | F31: 2 | G31: 220 | H31: 0.15 | I31: 0.95 | J31: 0.3286841052 | L31: 2 | O31: 0.6573682104 | Q31: 9.56937799 | S31: 0.3 | V31: 0.09860523155 | X31: 0 | Y31: 9.56937799 | Z31: 0 | AB31: 4 | AG31: =IF(G31=380,VLOOKUP(CEILING(#REF!,1),#REF!,2)," ") ->  | AH31: =IF(G31=220,VLOOKUP(CEILING(#REF!,1),#REF!,2)," ") ->  | AK31: =IF(G31=220,VLOOKUP(AH31,#REF!,2)," ") ->  | AL31: =IF(G31=380,VLOOKUP(AG31,#REF!,2)," ") -> 
A32: 59 | C32: Консоль палатная длина 1240 6 розеток + освещение | D32: 1 | E32: 2 | F32: 2 | G32: 220 | H32: 0.15 | I32: 0.95 | J32: 0.3286841052 | M32: 2 | P32: 0.6573682104 | Q32: 9.56937799 | T32: 0.3 | W32: 0.09860523155 | X32: 0 | Y32: 0 | Z32: 9.56937799 | AB32: 4 | AG32: =IF(G32=380,VLOOKUP(CEILING(#REF!,1),#REF!,2)," ") ->  | AH32: =IF(G32=220,VLOOKUP(CEILING(#REF!,1),#REF!,2)," ") ->  | AK32: =IF(G32=220,VLOOKUP(AH32,#REF!,2)," ") ->  | AL32: =IF(G32=380,VLOOKUP(AG32,#REF!,2)," ") -> 
A33: 59 | C33: Консоль палатная длина 1240 6 розеток + освещение | D33: 1 | E33: 2 | F33: 2 | G33: 220 | H33: 0.15 | I33: 0.95 | J33: 0.3286841052 | L33: 2 | O33: 0.6573682104 | Q33: 9.56937799 | S33: 0.3 | V33: 0.09860523155 | X33: 0 | Y33: 9.56937799 | Z33: 0 | AB33: 4 | AG33: =IF(G33=380,VLOOKUP(CEILING(#REF!,1),#REF!,2)," ") ->  | AH33: =IF(G33=220,VLOOKUP(CEILING(#REF!,1),#REF!,2)," ") ->  | AK33: =IF(G33=220,VLOOKUP(AH33,#REF!,2)," ") ->  | AL33: =IF(G33=380,VLOOKUP(AG33,#REF!,2)," ") -> 
A34: 59 | C34: Консоль палатная длина 1240 6 розеток + освещение | D34: 1 | E34: 2 | F34: 2 | G34: 220 | H34: 0.15 | I34: 0.95 | J34: 0.3286841052 | L34: =F34 -> 2 | O34: 0.6573682104 | Q34: 9.56937799 | S34: 0.3 | V34: 0.09860523155 | X34: 0 | Y34: 9.56937799 | Z34: 0 | AB34: 4 | AG34: =IF(G34=380,VLOOKUP(CEILING(#REF!,1),#REF!,2)," ") ->  | AH34: =IF(G34=220,VLOOKUP(CEILING(#REF!,1),#REF!,2)," ") ->  | AK34: =IF(G34=220,VLOOKUP(AH34,#REF!,2)," ") ->  | AL34: =IF(G34=380,VLOOKUP(AG34,#REF!,2)," ") -> 
A35: 135 | C35: Плита настольная электрическая | D35: 1 | E35: 5 | F35: 5 | G35: 380 | H35: 0.8 | I35: 0.98 | J35: 0.2030586606 | K35: =$F35/3 -> 1.666666667 | L35: 1.666666667 | M35: 1.666666667 | N35: =IF(K35=0," ",IF($I35=1,#REF!,$K35*$J35)) -> 0.3384311011 | O35: =IF(L35=0," ",IF($I35=1,#REF!,$L35*$J35)) -> 0.3384311011 | P35: =IF(M35=0," ",IF($I35=1,#REF!,$M35*$J35)) -> 0.3384311011 | Q35: 7.751749049 | R35: =IF(K35=0," ",($F35*$H35)/3) -> 1.333333333 | S35: 1.333333333 | T35: 1.333333333 | U35: =IF(K35=0," ",IF($I35=1,#REF!,$J35*$K35*$H35)) -> 0.2707448808 | V35: =IF(L35=0," ",IF($I35=1,#REF!,$J35*$L35*$H35)) -> 0.2707448808 | W35: =IF(M35=0," ",IF($I35=1,#REF!,$J35*$M35*$H35)) -> 0.2707448808 | X35: 7.730364873 | Y35: 7.730364873 | Z35: 7.730364873
A36: 152 | C36: Куллер | D36: 1 | E36: 0.55 | F36: 0.55 | G36: 220 | H36: 0.8 | I36: 0.98 | J36: 0.2030586606 | M36: =F36 -> 0.55 | N36: =IF(K36=0," ",$F36*$J36) ->  | P36: 0.1116822633 | Q36: 2.551020408 | R36: =IF(K36=0," ",$F36*$H36) ->  | T36: 0.44 | U36: =IF(K36=0," ",$J36*$F36*$H36) ->  | W36: 0.08934581068 | X36: 0 | Y36: 0 | Z36: 2.551020408
A37: 50 | C37: вытяжка бытовая | D37: 1 | E37: 0.24 | F37: 0.24 | G37: 220 | H37: 0.8 | I37: 0.65 | J37: 1.16912955 | M37: 0.24 | P37: 0.2805910921 | Q37: 1.678321678 | T37: 0.192 | W37: 0.2244728737 | X37: 0 | Y37: 0 | Z37: 1.678321678
C38: PC Smart-UPS RT 1000VA RM | D38: 1 | E38: 1 | F38: =E38*D38 -> 1 | G38: 220 | H38: 1 | I38: 0.85 | J38: =IF(I38=0," ",IF(I38=1,"-",TAN(ACOS(I38)))) -> 0.6197443384 | L38: =F38 -> 1 | N38: =IF(K38=0," ",$F38*$J38) ->  | O38: =IF(L38=0," ",$F38*$J38) -> 0.6197443384 | P38: =IF(M38=0," ",$F38*$J38) ->  | Q38: =IF($I38=0," ",IF($G38=220,$F38/(0.22*$I38),$F38/(0.38*$I38*3^0.5))) -> 5.347593583 | R38: =IF(K38=0," ",$F38*$H38) ->  | S38: =IF(L38=0," ",$F38*$H38) -> 1 | T38: =IF(M38=0," ",$F38*$H38) ->  | U38: =IF(K38=0," ",$J38*$F38*$H38) ->  | V38: =IF(L38=0," ",$J38*$F38*$H38) -> 0.6197443384 | W38: =IF(M38=0," ",$J38*$F38*$H38) ->  | X38: =IF(K38=0,0,K38/(0.22*I38)) -> 0 | Y38: =IF(L38=0,0,L38/(0.22*I38)) -> 5.347593583 | Z38: =IF(M38=0,0,M38/(0.22*I38)) -> 0
A39: 137 | C39: микроволновая печь | D39: 1 | E39: 1.2 | F39: 1.2 | G39: 220 | H39: 0.8 | I39: 0.98 | J39: 0.2030586606 | K39: =F39 -> 1.2 | N39: 0.2436703928 | Q39: 5.565862709 | R39: 0.96 | U39: 0.1949363142 | X39: 5.565862709 | Y39: 0 | Z39: 0
C40: Водоподогреватель | D40: 1 | E40: 1.5 | F40: =E40*D40 -> 1.5 | G40: 220 | H40: 0.8 | I40: 0.98 | J40: 0.2030586606 | M40: =F40 -> 1.5 | P40: 0.304587991 | Q40: 6.957328386 | T40: 1.2 | W40: 0.2436703928 | X40: 0 | Y40: 0 | Z40: 6.957328386
K41: =SUM(K19:K40) -> 12.65333333 | L41: =SUM(L19:L40) -> 15.57333333 | M41: =SUM(M19:M40) -> 12.80333333 | N41: =SUM(N19:N40) -> 2.986445395 | O41: 4.388013749 | P41: 3.43323365 | R41: =SUM(R19:R40) -> 8.182 | S41: 8.024 | T41: 8.364 | U41: 1.832527817 | V41: 2.192256388 | W41: 2.270848907 | X41: =mmax(X19:X40) -> 29.99381571 | Y41: =mmax(Y19:Y40) -> 29.99381571 | Z41: =mmax(Z19:Z40) -> 29.99381571
D42: =SUM(D19:D40) -> 25 | F42: =SUM(F19:F40) -> 41.03 | G42: 380 | H42: =R42/K42 -> 0.5370719178 | I42: =COS(ATAN(J42)) -> 0.9650631776 | J42: =U42/R42 -> 0.2715027388 | K42: =MAX(SUM(K19:K40),SUM(L19:L40),SUM(M19:M40))*3 -> 46.72 | N42: =MAX(SUM(N19:N40),SUM(O19:O40),SUM(P19:P40))*3 -> 13.16404125 | Q42: =IF($F42=0," ",IF($G42=220,$K42/(0.22*COS(ATAN(N42/K42))),$K42/(0.38*COS(ATAN(N42/K42))*3^0.5))) -> 73.74762907 | R42: =MAX(SUM(R19:R40),SUM(S19:S40),SUM(T19:T40))*3 -> 25.092 | U42: =MAX(SUM(U19:U40),SUM(V19:V40),SUM(W19:W40))*3 -> 6.812546722 | X42: =MAX(X41,Y41,Z41) -> 29.99381571 | AA42: =IF($F42=0," ",IF($G42=220,$R42/(0.22*COS(ATAN(U42/R42))),$R42/(0.38*COS(ATAN(U42/R42))*3^0.5))) -> 39.5034758 | AB42: =SUM(AB19:AB34) -> 20.34 | AC42: =F42^2/AB42 -> 82.76602262 | AD42: =VLOOKUP(FLOOR(AC42,1),#REF!,IF(H42>0.75,10,IF(H42>0.65,9,IF(H42>0.55,8,IF(H42>0.45,7,IF(H42>0.35,6,IF(H42>0.25,5,IF(H42>0.175,4,3)))))))) ->  | AE42: =AD42*#REF! ->  | AG42: =IF(G42=380,VLOOKUP(CEILING(#REF!,1),#REF!,2)," ") ->  | AH42: =IF(G42=220,VLOOKUP(CEILING(#REF!,1),#REF!,2)," ") ->  | AK42: =IF(G42=220,VLOOKUP(AH42,#REF!,2)," ") ->  | AL42: =IF(G42=380,VLOOKUP(AG42,#REF!,2)," ") ->  | AM42: =SUM(#REF!)+3 ->  | AN42: =IF(F42=0," ",IF(AM42+5<9,"ЩРн-9з-3 38 УХЛ3",IF(AM42+5<12,"ЩРн-12з-3 38 УХЛ3",IF(AM42+5<18,"ЩРн-18з-3 38 УХЛ3",IF(AM42+5<24,"ЩРн-24з-3 38 УХЛ3",IF(AM42+5<36,"ЩРн-36з-3 38 УХЛ3",IF(AM42+5<48,"ЩРн-48з-3 38 УХЛ3",IF(AM42+5<54,"ЩРн-54з-3 38 УХЛ3","ЩРн-72з-3 38 УХЛ3")))))))) -> 
K45: =K41+K16 -> 20.65333333 | L45: =L41+L16 -> 23.57333333 | M45: =M41+M16 -> 19.08333333
K46: =MAX(SUM(K19:K40,K4:K15),SUM(L19:L40,L4:L15),SUM(M19:M40,M4:M15))*3 -> 70.72 | AA46: =IF($F46=0," ",IF($G46=220,$R46/(0.22*COS(ATAN(U46/R46))),$R46/(0.38*COS(ATAN(U46/R46))*3^0.5))) -> 
